fUST/lending_fUST_20240626
["ID","MTS","AMOUNT","RATE_DAILY","PERIOD"]
[330437711,1719402665098,-500.0,0.00019178,2]
[330437712,1719402665107,-500.0,0.00019178,2]
[330437713,1719402665116,-500.0,0.00019178,2]
[330437714,1719402665124,-860.23,0.00019178,2]
[330437715,1719402665134,-1013.49,0.00019178,2]
[330437716,1719402665143,-12464.36,0.00019178,2]
[330437717,1719402665152,-978.83,0.00019178,2]
[330437718,1719402665161,-3284.4,0.00019178,2]
[330437719,1719402665170,-500.0,0.00019178,2]
[330437720,1719402665179,-1002.28,0.00019178,2]
[330437721,1719402665188,-742.27,0.00019178,2]
[330437722,1719402665197,-796.99,0.00019178,2]
[330437723,1719402665206,-845.9,0.00019178,2]
[330437724,1719402665215,-600.53,0.00019178,2]
[330437725,1719402665225,-743.68,0.00019178,2]
[330437726,1719402665234,-500.0,0.00019178,2]
[330437727,1719402665248,-1361.98,0.00019178,2]
[330437728,1719402665257,-500.0,0.00019178,2]
[330437729,1719402665267,-500.0,0.00019178,2]
[330437730,1719402665277,-500.0,0.00019178,2]
[330437731,1719402665286,-583.45,0.00019178,2]
[330437732,1719402665295,-986.71,0.00019178,2]
[330437733,1719402665304,-1274.75,0.00019178,2]
[330437734,1719402665313,-500.0,0.00019178,2]
[330437735,1719402665323,-500.0,0.00019178,2]
[330437736,1719402665332,-500.0,0.00019178,2]
[330437737,1719402665341,-658.07,0.00019178,2]
[330437738,1719402665351,-500.0,0.00019178,2]
[330437739,1719402665360,-1250.86,0.00019178,2]
[330437740,1719402665369,-552.88,0.00019178,2]
[330437741,1719402665378,-783.65,0.00019178,2]
[330437742,1719402665387,-531.03,0.00019178,2]
[330437743,1719402665396,-974.08,0.00019178,2]
[330437744,1719402665405,-508.78,0.00019178,2]
[330437745,1719402665415,-500.0,0.00019178,2]
[330437746,1719402665424,-1012.16,0.00019178,2]
[330437747,1719402665433,-2862.69,0.00019178,2]
[330437748,1719402665442,-500.0,0.00019178,2]
[330437749,1719402665451,-500.0,0.00019178,2]
[330437750,1719402665460,-1136.97,0.00019178,2]
[330437751,1719402665469,-500.0,0.00019178,2]
[330437752,1719402665479,-1084.19,0.00019178,2]
[330437753,1719402665489,-678.53,0.00019178,2]
[330437754,1719402665498,-560.68,0.00019178,2]
[330437755,1719402665506,-645.3,0.00019178,2]
[330437756,1719402665515,-193.5,0.00019178,2]
[330437757,1719402665523,-812.54,0.00019178,2]
[330437758,1719402665533,-500.0,0.00019178,2]
[330437759,1719402665542,-2859.63,0.00019178,2]
[330437760,1719402665551,-524.14,0.00019178,2]
[330437761,1719402665559,-1390.74,0.00019178,2]
[330437762,1719402665568,-5402.31,0.00019178,2]
[330437763,1719402665577,-1480.8,0.00019178,2]
[330437764,1719402665586,-500.0,0.00019178,2]
[330437765,1719402665595,-517.63415419,0.00019178,2]
[330437766,1719402665604,-702.37,0.00019178,2]
[330437767,1719402665614,-2281.43,0.00019178,2]
[330437768,1719402665623,-12137.58,0.00019178,2]
[330437769,1719402665633,-500.0,0.00019178,2]
[330437770,1719402665642,-4396.45,0.00019178,2]
[330437771,1719402665651,-1713.01,0.00019178,2]
[330437772,1719402665660,-530.11208601,0.00019178,2]
[330437773,1719402665669,-719.49,0.00019178,2]
[330437774,1719402665678,-2673.71,0.00019178,2]
[330437775,1719402665687,-11993.98,0.00019178,2]
[330437776,1719402665696,-6283.86,0.00019178,2]
[330437777,1719402665705,-1476.33,0.00019178,2]
[330437778,1719402665715,-577.08,0.00019178,2]
[330437779,1719402665724,-651.53,0.00019178,2]
[330437780,1719402665733,-525.02,0.00019178,2]
[330437781,1719402665746,-707.19,0.00019178,2]
[330437782,1719402665756,-1278.75,0.00019178,2]
[330437783,1719402665765,-369.26972468,0.00019178,2]
[330437784,1719402665774,-500.0,0.00019178,2]
[330437785,1719402665784,-4347.6,0.00019178,2]
[330437786,1719402665793,-1265.55,0.00019178,2]
[330437787,1719402665802,-2476.57,0.00019178,2]
[330437788,1719402665811,-841.77,0.00019178,2]
[330437789,1719402665822,-4771.54,0.00019178,2]
[330437790,1719402665831,-749.03,0.00019178,2]
[330437791,1719402665927,-2462.19,0.00019178,2]
[330437792,1719402665937,-500.0,0.00019178,2]
[330437793,1719402665946,-1477.35,0.00019178,2]
[330437794,1719402665955,-1312.45,0.00019178,2]
[330437795,1719402665965,-873.55,0.00019178,2]
[330437796,1719402665974,-875.85,0.00019178,2]
[330437797,1719402665983,-544.69,0.00019178,2]
[330437798,1719402665994,-5102.2,0.00019178,2]
[330437799,1719402666004,-500.0,0.00019178,2]
[330437800,1719402666013,-1150.15,0.00019178,2]
[330437801,1719402666023,-8168.68,0.00019178,2]
[330437802,1719402666032,-719.59,0.00019178,2]
[330437803,1719402666040,-380.583608,0.00019178,2]
[330437804,1719402666050,-440.0940842,0.00019178,4]
[330437805,1719402666059,-160.0,0.00019328,7]
[330437806,1719402666068,-924.72,0.00019452,2]
[330437807,1719402666077,-860.23,0.00019452,2]
[330437808,1719402666086,-1013.49,0.00019452,2]
[330437809,1719402666095,-12464.36,0.00019452,2]
[330437810,1719402666104,-978.83,0.00019452,2]
[330437811,1719402666113,-3284.4,0.00019452,2]
[330437812,1719402666123,-500.0,0.00019452,2]
[330437813,1719402666133,-1002.28,0.00019452,2]
[330437814,1719402666144,-742.27,0.00019452,2]
[330437815,1719402666153,-796.99,0.00019452,2]
[330437816,1719402666163,-845.9,0.00019452,2]
[330437817,1719402666172,-600.53,0.00019452,2]
[330437818,1719402666182,-743.68,0.00019452,2]
[330437819,1719402666191,-500.0,0.00019452,2]
[330437820,1719402666200,-1361.98,0.00019452,2]
[330437821,1719402666211,-500.0,0.00019452,2]
[330437822,1719402666221,-286.76580304,0.00019452,2]
[330437823,1719402666230,-322.54236018,0.00019452,2]
[330437824,1719402666240,-583.45,0.00019452,2]
[330437825,1719402666249,-986.71,0.00019452,2]
[330437826,1719402666259,-1274.75,0.00019452,2]
[330437827,1719402666268,-500.0,0.00019452,2]
[330437828,1719402666278,-500.0,0.00019452,2]
[330437829,1719402666287,-500.0,0.00019452,2]
[330437830,1719402666296,-658.07,0.00019452,2]
[330437831,1719402666305,-500.0,0.00019452,2]
[330437832,1719402666315,-1250.86,0.00019452,2]
[330437833,1719402666324,-783.65,0.00019452,2]
[330437834,1719402666333,-531.03,0.00019452,2]
[330437835,1719402666343,-974.08,0.00019452,2]
[330437836,1719402666352,-508.78,0.00019452,2]
[330437837,1719402666361,-500.0,0.00019452,2]
[330437838,1719402666370,-1012.16,0.00019452,2]
[330437839,1719402666380,-2862.69,0.00019452,2]
[330437840,1719402666389,-500.0,0.00019452,2]
[330437841,1719402666398,-500.0,0.00019452,2]
[330437842,1719402666408,-1136.97,0.00019452,2]
[330437843,1719402666417,-500.0,0.00019452,2]
[330437844,1719402666426,-1084.19,0.00019452,2]
[330437845,1719402666435,-678.53,0.00019452,2]
[330437846,1719402666444,-560.68,0.00019452,2]
[330437847,1719402666453,-645.3,0.00019452,2]
[330437848,1719402666462,-193.5,0.00019452,2]
[330437849,1719402666470,-812.54,0.00019452,2]
[330437850,1719402666479,-500.0,0.00019452,2]
[330437851,1719402666489,-2859.63,0.00019452,2]
[330437852,1719402666498,-524.14,0.00019452,2]
[330437853,1719402666508,-1390.74,0.00019452,2]
[330437854,1719402666517,-5402.31,0.00019452,2]
[330437855,1719402666526,-1480.8,0.00019452,2]
[330437856,1719402666535,-500.0,0.00019452,2]
[330437857,1719402666544,-702.37,0.00019452,2]
[330437858,1719402666553,-2281.43,0.00019452,2]
[330437859,1719402666562,-12137.58,0.00019452,2]
[330437860,1719402666571,-500.0,0.00019452,2]
[330437861,1719402666581,-4396.45,0.00019452,2]
[330437862,1719402666590,-1713.01,0.00019452,2]
[330437863,1719402666600,-719.49,0.00019452,2]
[330437864,1719402666611,-2673.71,0.00019452,2]
[330437865,1719402666621,-11993.98,0.00019452,2]
[330437866,1719402666631,-6283.86,0.00019452,2]
[330437867,1719402666640,-1476.33,0.00019452,2]
[330437868,1719402666650,-577.08,0.00019452,2]
[330437869,1719402666659,-651.53,0.00019452,2]
[330437870,1719402666668,-525.02,0.00019452,2]
[330437871,1719402666677,-707.19,0.00019452,2]
[330437872,1719402666686,-1278.75,0.00019452,2]
[330437873,1719402666695,-500.0,0.00019452,2]
[330437874,1719402666704,-4347.6,0.00019452,2]
[330437875,1719402666713,-1265.55,0.00019452,2]
[330437876,1719402666722,-2476.57,0.00019452,2]
[330437877,1719402666731,-841.77,0.00019452,2]
[330437878,1719402666743,-4771.54,0.00019452,2]
[330437879,1719402666752,-749.03,0.00019452,2]
[330437880,1719402666762,-2462.19,0.00019452,2]
[330437881,1719402666771,-415.99028883,0.00019452,2]
[330437882,1719402666787,-1477.35,0.00019452,2]
[330437883,1719402666802,-1312.45,0.00019452,2]
[330437884,1719402666814,-873.55,0.00019452,2]
[330437885,1719402666828,-875.85,0.00019452,2]
[330437886,1719402666841,-544.69,0.00019452,2]
[330437887,1719402666856,-5102.2,0.00019452,2]
[330437888,1719402666870,-500.0,0.00019452,2]
[330437889,1719402666885,-1150.15,0.00019452,2]
[330437890,1719402666899,-8168.68,0.00019452,2]
[330437891,1719402666912,-719.59,0.00019452,2]
[330437892,1719402666926,-155.0,0.0001946,2]
[330437893,1719402666939,-160.0,0.00019606,8]
[330437894,1719402666950,-277.94463668,0.00019606,5]
[330437895,1719402666962,-450.0,0.00019626,2]
[330437896,1719402666975,-1000.0,0.0001965,2]
[330437897,1719402666990,-924.72,0.00019726,2]
[330437898,1719402667003,-860.23,0.00019726,2]
[330437899,1719402667018,-1013.49,0.00019726,2]
[330437900,1719402667032,-12464.36,0.00019726,2]
[330437901,1719402667042,-978.83,0.00019726,2]
[330437902,1719402667053,-3284.4,0.00019726,2]
[330437903,1719402667068,-500.0,0.00019726,2]
[330437904,1719402667085,-1002.28,0.00019726,2]
[330437905,1719402667098,-742.27,0.00019726,2]
[330437906,1719402667111,-796.99,0.00019726,2]
[330437907,1719402667125,-845.9,0.00019726,2]
[330437908,1719402667138,-600.53,0.00019726,2]
[330437909,1719402667151,-743.68,0.00019726,2]
[330437910,1719402667163,-500.0,0.00019726,2]
[330437911,1719402667175,-1361.98,0.00019726,2]
[330437912,1719402667188,-500.0,0.00019726,2]
[330437913,1719402667200,-583.45,0.00019726,2]
[330437914,1719402667212,-986.71,0.00019726,2]
[330437915,1719402667224,-1274.75,0.00019726,2]
[330437916,1719402667236,-500.0,0.00019726,2]
[330437917,1719402667251,-500.0,0.00019726,2]
[330437918,1719402667265,-500.0,0.00019726,2]
[330437919,1719402667276,-658.07,0.00019726,2]
[330437920,1719402667288,-500.0,0.00019726,2]
[330437921,1719402667300,-1250.86,0.00019726,2]
[330437922,1719402667312,-783.65,0.00019726,2]
[330437923,1719402667325,-531.03,0.00019726,2]
[330437924,1719402667337,-974.08,0.00019726,2]
[330437925,1719402667349,-508.78,0.00019726,2]
[330437926,1719402667361,-500.0,0.00019726,2]
[330437927,1719402667374,-1012.16,0.00019726,2]
[330437928,1719402667385,-2862.69,0.00019726,2]
[330437929,1719402667397,-500.0,0.00019726,2]
[330437930,1719402667409,-500.0,0.00019726,2]
[330437931,1719402667421,-1136.97,0.00019726,2]
[330437932,1719402667433,-500.0,0.00019726,2]
[330437933,1719402667445,-1084.19,0.00019726,2]
[330437934,1719402667456,-678.53,0.00019726,2]
[330437935,1719402667468,-560.68,0.00019726,2]
[330437936,1719402667480,-812.54,0.00019726,2]
[330437937,1719402667495,-500.0,0.00019726,2]
[330437938,1719402667507,-2859.63,0.00019726,2]
[330437939,1719402667519,-524.14,0.00019726,2]
[330437940,1719402667531,-1390.74,0.00019726,2]
[330437941,1719402667543,-5402.31,0.00019726,2]
[330437942,1719402667556,-1480.8,0.00019726,2]
[330437943,1719402667567,-500.0,0.00019726,2]
[330437944,1719402667580,-702.37,0.00019726,2]
[330437945,1719402667591,-2281.43,0.00019726,2]
[330437946,1719402667603,-12137.58,0.00019726,2]
[330437947,1719402667615,-500.0,0.00019726,2]
[330437948,1719402667626,-4396.45,0.00019726,2]
[330437949,1719402667638,-1713.01,0.00019726,2]
[330437950,1719402667650,-719.49,0.00019726,2]
[330437951,1719402667661,-2673.71,0.00019726,2]
[330437952,1719402667674,-11993.98,0.00019726,2]
[330437953,1719402667686,-6283.86,0.00019726,2]
[330437954,1719402667698,-1476.33,0.00019726,2]
[330437955,1719402667709,-577.08,0.00019726,2]
[330437956,1719402667721,-651.53,0.00019726,2]
[330437957,1719402667733,-525.02,0.00019726,2]
[330437958,1719402667751,-707.19,0.00019726,2]
[330437959,1719402667763,-1278.75,0.00019726,2]
[330437960,1719402667778,-500.0,0.00019726,2]
[330437961,1719402667792,-4347.6,0.00019726,2]
[330437962,1719402667804,-2476.57,0.00019726,2]
[330437963,1719402667817,-841.77,0.00019726,2]
[330437964,1719402667832,-4771.54,0.00019726,2]
[330437965,1719402667844,-749.03,0.00019726,2]
[330437966,1719402667856,-1477.35,0.00019726,2]
[330437967,1719402667870,-2462.19,0.00019726,2]
[330437968,1719402667881,-1312.45,0.00019726,2]
[330437969,1719402668024,-873.55,0.00019726,2]
[330437970,1719402668034,-875.85,0.00019726,2]
[330437971,1719402668043,-544.69,0.00019726,2]
[330437972,1719402668055,-5102.2,0.00019726,2]
[330437973,1719402668064,-500.0,0.00019726,2]
[330437974,1719402668074,-1150.15,0.00019726,2]
[330437975,1719402668083,-8168.68,0.00019726,2]
[330437976,1719402668093,-719.59,0.00019726,2]
[330437977,1719402668102,-154.83742071,0.00019735,2]
[330437978,1719402668111,-154.83742071,0.00019735,2]
[330437979,1719402668121,-74584.00887453,0.000199,2]
[330437980,1719402668130,-154.98324278,0.0001998,2]
[330437981,1719402668139,-20972.68639312,0.0002,2]
[330437982,1719402668148,-167.37446479,0.0002,2]
[330437983,1719402668157,-154.80649189,0.0002,2]
[330437984,1719402668167,-4462.52567885,0.0002,2]
[330437985,1719402668176,-154.82195475,0.0002,2]
[330437986,1719402668186,-252.60612571,0.0002,2]
[330437987,1719402668196,-435.0,0.0002,2]
[330437988,1719402668206,-158.22233112,0.0002,2]
[330437989,1719402668215,-52864.61719336,0.0002,2]
[330437990,1719402668225,-6393.02921861,0.0002,2]
[330437991,1719402668235,-4266.307086,0.0002,2]
[330437992,1719402668246,-97644.56996482,0.0002,2]
[330437993,1719402668255,-153.7187325,0.0002,2]
[330437994,1719402668264,-497.0,0.0002,2]
[330437995,1719402668273,-498.0,0.0002,2]
[330437996,1719402668282,-10000.0,0.0002,2]
[330437997,1719402668292,-500.0,0.0002,2]
[330437998,1719402668301,-1012.21353542,0.0002,2]
[330437999,1719402668311,-173.52936546,0.0002,2]
[330438000,1719402668320,-7048.28201243,0.0002,2]
[330438001,1719402668330,-2000.0,0.0002,2]
[330438002,1719402668339,-2000.0,0.0002,2]
[330438003,1719402668349,-2000.0,0.0002,2]
[330438004,1719402668358,-500.0,0.0002,2]
[330438005,1719402668368,-778.71115011,0.0002,2]
[330438006,1719402668378,-2000.0,0.0002,2]
[330438007,1719402668387,-924.72,0.0002,2]
[330438008,1719402668397,-1500.0,0.0002,2]
[330438009,1719402668406,-1500.0,0.0002,2]
[330438010,1719402668415,-1500.0,0.0002,2]
[330438011,1719402668425,-1500.0,0.0002,2]
[330438012,1719402668434,-1500.0,0.0002,2]
[330438013,1719402668444,-1500.0,0.0002,2]
[330438014,1719402668453,-1500.0,0.0002,2]
[330438015,1719402668463,-1500.0,0.0002,2]
[330438016,1719402668472,-1500.0,0.0002,2]
[330438017,1719402668482,-1359.98,0.0002,2]
[330438018,1719402668492,-1500.0,0.0002,2]
[330438019,1719402668502,-154.91479686,0.0002,2]
[330438020,1719402668512,-180.0,0.0002,2]
[330438021,1719402668521,-2047.0,0.0002,2]
[330438022,1719402668530,-2047.0,0.0002,2]
[330438023,1719402668540,-2047.0,0.0002,2]
[330438024,1719402668550,-350.0,0.0002,3]
[330438025,1719402668559,-404.0,0.0002,2]
[330438026,1719402668568,-4185.46352614,0.0002,2]
[330438027,1719402668578,-2047.0,0.0002,2]
[330438028,1719402668587,-2000.0,0.0002,2]
[330438029,1719402668596,-2047.0,0.0002,2]
[330438030,1719402668605,-2000.0,0.0002,2]
[330438031,1719402668614,-154.85288975,0.0002,2]
[330438032,1719402668623,-809.0,0.0002,2]
[330438033,1719402668633,-809.0,0.0002,2]
[330438034,1719402668642,-964.76913435,0.0002,2]
[330438035,1719402668651,-2047.0,0.0002,2]
[330438036,1719402668661,-2000.0,0.0002,2]
[330438037,1719402668670,-2047.0,0.0002,2]
[330438038,1719402668678,-2000.0,0.0002,2]
[330438039,1719402668688,-809.0,0.0002,2]
[330438040,1719402668697,-10000.0,0.0002,4]
[330438041,1719402668706,-5998.24812768,0.0002,4]
[330438042,1719402668716,-1933.0,0.0002,2]
[330438043,1719402668725,-4690.4686199,0.0002,2]
[330438044,1719402668735,-404.0,0.0002,2]
[330438045,1719402668747,-404.0,0.0002,2]
[330438046,1719402668758,-860.23,0.0002,2]
[330438047,1719402668767,-1013.49,0.0002,2]
[330438048,1719402668777,-12464.36,0.0002,2]
[330438049,1719402668788,-978.83,0.0002,2]
[330438050,1719402668797,-3284.4,0.0002,2]
[330438051,1719402668807,-500.0,0.0002,2]
[330438052,1719402668816,-1002.28,0.0002,2]
[330438053,1719402668826,-742.27,0.0002,2]
[330438054,1719402668836,-796.99,0.0002,2]
[330438055,1719402668846,-600.53,0.0002,2]
[330438056,1719402668855,-845.9,0.0002,2]
[330438057,1719402668864,-743.68,0.0002,2]
[330438058,1719402668874,-500.0,0.0002,2]
[330438059,1719402668884,-1361.98,0.0002,2]
[330438060,1719402668894,-500.0,0.0002,2]
[330438061,1719402668903,-151.34866798,0.0002,2]
[330438062,1719402668912,-583.45,0.0002,2]
[330438063,1719402668922,-986.71,0.0002,2]
[330438064,1719402668932,-1274.75,0.0002,2]
[330438065,1719402668942,-500.0,0.0002,2]
[330438066,1719402668952,-500.0,0.0002,2]
[330438067,1719402668962,-500.0,0.0002,2]
[330438068,1719402668972,-658.07,0.0002,2]
[330438069,1719402668982,-500.0,0.0002,2]
[330438070,1719402668994,-1250.86,0.0002,2]
[330438071,1719402669004,-783.65,0.0002,2]
[330438072,1719402669014,-531.03,0.0002,2]
[330438073,1719402669024,-974.08,0.0002,2]
[330438074,1719402669035,-508.78,0.0002,2]
[330438075,1719402669045,-420.66374713,0.0002,2]
[330438076,1719402669054,-1012.16,0.0002,2]
[330438077,1719402669063,-2862.69,0.0002,2]
[330438078,1719402669073,-457.58702008,0.0002,2]
[330438079,1719402669083,-500.0,0.0002,2]
[330438080,1719402669092,-1136.97,0.0002,2]
[330438081,1719402669102,-500.0,0.0002,2]
[330438082,1719402669112,-1084.19,0.0002,2]
[330438083,1719402669121,-678.53,0.0002,2]
[330438084,1719402669131,-560.68,0.0002,2]
[330438085,1719402669140,-812.54,0.0002,2]
[330438086,1719402669150,-153.262487,0.0002,2]
[330438087,1719402669159,-500.0,0.0002,2]
[330438088,1719402669169,-2859.63,0.0002,2]
[330438089,1719402669179,-524.14,0.0002,2]
[330438090,1719402669188,-1390.74,0.0002,2]
[330438091,1719402669198,-5402.31,0.0002,2]
[330438092,1719402669208,-594.0,0.0002,2]
[330438093,1719402669218,-1480.8,0.0002,2]
[330438094,1719402669228,-500.0,0.0002,2]
[330438095,1719402669238,-702.37,0.0002,2]
[330438096,1719402669247,-2281.43,0.0002,2]
[330438097,1719402669257,-12137.58,0.0002,2]
[330438098,1719402669267,-500.0,0.0002,2]
[330438099,1719402669277,-4396.45,0.0002,2]
[330438100,1719402669287,-1713.01,0.0002,2]
[330438101,1719402669297,-1704.0,0.0002,2]
[330438102,1719402669307,-719.49,0.0002,2]
[330438103,1719402669316,-2673.71,0.0002,2]
[330438104,1719402669326,-19479.0,0.0002,2]
[330438105,1719402669335,-11993.98,0.0002,2]
[330438106,1719402669345,-6283.86,0.0002,2]
[330438107,1719402669355,-907.19421769,0.0002,2]
[330438108,1719402669364,-1476.33,0.0002,2]
[330438109,1719402669374,-577.08,0.0002,2]
[330438110,1719402669383,-651.53,0.0002,2]
[330438111,1719402669393,-525.02,0.0002,2]
[330438112,1719402669403,-707.19,0.0002,2]
[330438113,1719402669412,-1278.75,0.0002,2]
[330438114,1719402669421,-500.0,0.0002,2]
[330438115,1719402669431,-4347.6,0.0002,2]
[330438116,1719402669440,-2476.57,0.0002,2]
[330438117,1719402669450,-841.77,0.0002,2]
[330438118,1719402669460,-4771.54,0.0002,2]
[330438119,1719402669469,-749.03,0.0002,2]
[330438120,1719402669479,-2462.19,0.0002,2]
[330438121,1719402669490,-1477.35,0.0002,2]
[330438122,1719402669499,-1312.45,0.0002,2]
[330438123,1719402669509,-873.55,0.0002,2]
[330438124,1719402669519,-875.85,0.0002,2]
[330438125,1719402669529,-544.69,0.0002,2]
[330438126,1719402669539,-5102.2,0.0002,2]
[330438127,1719402669548,-500.0,0.0002,2]
[330438128,1719402669557,-1150.15,0.0002,2]
[330438129,1719402669566,-719.59,0.0002,2]
[330438130,1719402669575,-8168.68,0.0002,2]
[330438131,1719402669584,-2846.77985768,0.00020032,2]
[330438132,1719402669594,-332.09357569,0.00020174,2]
[330438133,1719402669603,-924.72,0.00020273,2]
[330438134,1719402669613,-860.23,0.00020273,2]
[330438135,1719402669622,-1013.49,0.00020273,2]
[330438136,1719402669631,-12464.36,0.00020273,2]
[330438137,1719402669641,-978.83,0.00020273,2]
[330438138,1719402669650,-3284.4,0.00020273,2]
[330438139,1719402669659,-500.0,0.00020273,2]
[330438140,1719402669669,-1002.28,0.00020273,2]
[330438141,1719402669679,-742.27,0.00020273,2]
[330438142,1719402669689,-796.99,0.00020273,2]
[330438143,1719402669698,-600.53,0.00020273,2]
[330438144,1719402669707,-845.9,0.00020273,2]
[330438145,1719402669717,-743.68,0.00020273,2]
[330438146,1719402669726,-500.0,0.00020273,2]
[330438147,1719402669735,-1361.98,0.00020273,2]
[330438148,1719402669746,-500.0,0.00020273,2]
[330438149,1719402669758,-583.45,0.00020273,2]
[330438150,1719402669768,-986.71,0.00020273,2]
[330438151,1719402669778,-1274.75,0.00020273,2]
[330438152,1719402669790,-500.0,0.00020273,2]
[330438153,1719402669799,-500.0,0.00020273,2]
[330438154,1719402669810,-170.43942917,0.00020273,2]
[330438155,1719402669819,-658.07,0.00020273,2]
[330438156,1719402669832,-500.0,0.00020273,2]
[330438157,1719402669843,-1250.86,0.00020273,2]
[330438158,1719402669853,-783.65,0.00020273,2]
[330438159,1719402669862,-531.03,0.00020273,2]
[330438160,1719402669872,-974.08,0.00020273,2]
[330438161,1719402669882,-508.78,0.00020273,2]
[330438162,1719402669892,-1012.16,0.00020273,2]
[330438163,1719402669903,-2862.69,0.00020273,2]
[330438164,1719402669912,-500.0,0.00020273,2]
[330438165,1719402669923,-1136.97,0.00020273,2]
[330438166,1719402669932,-500.0,0.00020273,2]
[330438167,1719402669942,-1084.19,0.00020273,2]
[330438168,1719402669951,-678.53,0.00020273,2]
[330438169,1719402669961,-560.68,0.00020273,2]
[330438170,1719402669971,-812.54,0.00020273,2]
[330438171,1719402669980,-500.0,0.00020273,2]
[330438172,1719402669990,-2859.63,0.00020273,2]
[330438173,1719402670000,-524.14,0.00020273,2]
[330438174,1719402670010,-1390.74,0.00020273,2]
[330438175,1719402670019,-5402.31,0.00020273,2]
[330438176,1719402670029,-1480.8,0.00020273,2]
[330438177,1719402670039,-500.0,0.00020273,2]
[330438178,1719402670049,-702.37,0.00020273,2]
[330438179,1719402670058,-2281.43,0.00020273,2]
[330438180,1719402670067,-12137.58,0.00020273,2]
[330438181,1719402670077,-500.0,0.00020273,2]
[330438182,1719402670087,-4396.45,0.00020273,2]
[330438183,1719402670096,-1713.01,0.00020273,2]
[330438184,1719402670106,-719.49,0.00020273,2]
[330438185,1719402670115,-2673.71,0.00020273,2]
[330438186,1719402670125,-11993.98,0.00020273,2]
[330438187,1719402670134,-6283.86,0.00020273,2]
[330438188,1719402670144,-1476.33,0.00020273,2]
[330438189,1719402670153,-577.08,0.00020273,2]
[330438190,1719402670163,-651.53,0.00020273,2]
[330438191,1719402670173,-525.02,0.00020273,2]
[330438192,1719402670183,-707.19,0.00020273,2]
[330438193,1719402670192,-1278.75,0.00020273,2]
[330438194,1719402670202,-500.0,0.00020273,2]
[330438195,1719402670212,-4347.6,0.00020273,2]
[330438196,1719402670223,-2476.57,0.00020273,2]
[330438197,1719402670333,-841.77,0.00020273,2]
[330438198,1719402670343,-4771.54,0.00020273,2]
[330438199,1719402670353,-749.03,0.00020273,2]
[330438200,1719402670363,-2462.19,0.00020273,2]
[330438201,1719402670372,-1477.35,0.00020273,2]
[330438202,1719402670382,-1312.45,0.00020273,2]
[330438203,1719402670392,-873.55,0.00020273,2]
[330438204,1719402670402,-875.85,0.00020273,2]
[330438205,1719402670411,-544.69,0.00020273,2]
[330438206,1719402670421,-5102.2,0.00020273,2]
[330438207,1719402670430,-1150.15,0.00020273,2]
[330438208,1719402670439,-719.59,0.00020273,2]
[330438209,1719402670448,-8168.68,0.00020273,2]
[330438210,1719402670457,-394.11298937,0.000203,2]